Workbook

Sheet Cuestionario PN
A2: MATRIZ PARA DECIDIR SI PUEDE PERTENECER AL RÉGIMEN SIMPLE
B4: A. PERSONA NATURAL NACIONAL O EXTRANJERA | G4: S/N
A6: 1 | B6: Residente en Colombia? | G6: SI
A7: 2 | B7: Desarrolla una empresa? | G7: SI
A8: 3 | B8: Ingresos brutos del año anterior menores a 100.000 UVT? Revise el monto consolidado si es socio o administra sociedades. Art. 905 E.T. El tope de ingresos brutos del año anterior deberán ser menores a 12.000 UVT para el caso de personas que presten servicios profesionales, de consultoría y científicos en los que predomine el factor intelectual sobre el material (diferentes de las actividades de educación, atención de la salud humana y asistencia social del grupo 4) | G8: SI
A9: 4 | B9: Ingresos brutos del presente año de inicio menores a 100.000 UVT ? Revise el monto consolidado si es socio o administra sociedades. Art. 905 E.T. Para los servicios profesionales del grupo 5, el tope de ingresos brutos del presente año deberán ser inferiores a 12.000 UVT | G9: SI
A10: 5 | B10: Si realiza actividades de recolección, recuperación y comercialización de desperdicios, desechos y chatarra, de que trata el grupo 6 ¿verificó que las utilidades netas sean iguales o inferiores al 3% del ingreso bruto?. Nral 11 Art. 906 E.T. | G10: SI
A11: 6 | B11: Cuenta con inscripción activa en el RUT y con todos mecanismos de cumplimiento del sistema de facturación electrónica? | G11: SI
A12: 7 | B12: Esta en capacidad de tener firma electrónica? | G12: SI
A13: 8 | B13: En el ejercicio de sus actividades se configuran los elementos propios de un contrato realidad laboral? | G13: NO
A14: 9 | B14: Se dedica a las actividades de microcrédito? | G14: NO
A15: 10 | B15: Es intermediario en gestión y venta de activos? | E15: Con ingresos brutos ≥ al 20% de los ingresos totales | G15: NO
A16: 11 | B16: Recibe arrendamientos? | G16: NO
A17: 12 | B17: Realiza actividades que generan rentas pasivas? (dividendos, intereses, explotación de intangibles, etc, art. 884 E.T) | G17: NO
A18: 13 | B18: Presta servicios de asesoría financiera y/o estructuración de créditos? | G18: NO
A19: 14 | B19: Realiza actividades de factoraje? | G19: NO
A20: 15 | B20: Realiza actividades de importación, exportación o comercialización de automóviles? | G20: NO
A21: 16 | B21: Realiza la actividad de importación de combustibles? | G21: NO
A22: 17 | B22: Desarrolla simultáneamente una de las actividades ubicadas en los numerales 10 a 18 y otra diferente?. | G22: NO
A23: 18 | B23: ¿Tiene rentas exentas o descuentos tributarios significativos? Recuerde que en el sistema SIMPLE se pierden estos beneficios | G23: NO
A24: 19 | B24: Realizó la matriz de decisión y determinó un ahorro en impuestos según sus ingresos ,la rentabilidad, el efecto en el IVA para el Grupo 1 y el costo de los aportes obligatorios a pensiones del personal vinculado? | G24: SI
B27: ¿SE PUEDE ACOGER AL RÉGIMEN SIMPLE? | G27: =IF(AND(G6="SI",G7="SI",G8="SI",G9="SI",G10="SI",G11="SI",G12="SI",G13="NO",G14="NO",G15="NO",G16="NO",G17="NO",G18="NO",G19="NO",G20="NO",G21="NO",G22="NO",G23="NO",G24="SI"),"SÍ","NO") -> SÍ
A29: Si al responder alguna de las preguntas propuestas aparece el semáforo en rojo, se traducirá que el contribuyente no podrá acogerse este sistema.
A31: * Si al evaluar todas las anteriores variables su cliente acierta todas las respuestas marcadas con color azul en el SI y en el NO,
A32: tal como están estructuradas, usted se puede acoger al régimen SIMPLE.
A34: * Con una sola respuesta en sentido contrario a las afirmaciones del SI o NO propuestas, su cliente no podrá pertenecer al régimen SIMPLE.

Sheet Cuestionario Sociedades
A3: MATRIZ PARA DECIDIR SI PUEDE PERTENECER AL REGIMEN SIMPLE
B8: B.SOCIEDADES. | D8: S/N
A10: 1 | B10: Sus accionistas son personas naturales residentes en Colombia? | D10: SI
A11: 2 | B11: Ingresos brutos del año anterior menores a 100.000 UVT? El tope de ingresos brutos del año anterior deben ser menores a 12.000 UVT para el caso de personas que presten servicios profesionales, de consultoría y científicos en los que predomine el factor intelectual sobre el material (diferentes de las actividades de educación, atención de la salud humana y asistencia social del grupo 4) | D11: SI
A12: 3 | B12: Ingresos brutos del presente año de inicio menores a 100.000 UVT? Para los servicios profesionales del grupo 5, el tope de ingresos brutos del presente año deberán ser inferiores a 12.000 UVT | D12: SI
A13: 4 | B13: Si realiza actividades de recolección, recuperación y comercialización de desperdicios, desechos y chatarra, de que trata el grupo 6 ¿verificó que las utilidades netas sean iguales o inferiores al 3% del ingreso bruto? | D13: SI
A14: 5 | B14: Cuenta con inscripción activa en el RUT y con todos mecanismos de cumplimiento del sistema de facturación electrónica? | D14: SI
A15: 6 | B15: Esta en capacidad de tener firma electrónica? | D15: SI
A16: 7 | B16: Es una persona jurídica extranjera o un establecimiento permanente de la persona jurídica extranjera? | D16: NO
A17: 8 | B17: Los socios o administradores de esta sociedad tienen en sustancia una relación laboral con el contratante por tratarse de servicios personales prestados con habitualidad y subordinación? | D17: NO
A18: 9 | B18: Esta sociedad es una filial, subsidiaria, agencia o sucursal de personas jurídicas nacionales o extranjeras no residentes? | D18: NO
A19: 10 | B19: Esta sociedad es accionista, sucriptora, partícipe, fideicomitente o beneficiaria de otras sociedades o entidades legales en Colombia o en el exterior?. | D19: NO
A20: 11 | B20: Esta sociedad es una entidad financiera? | D20: NO
A21: 12 | B21: Esta sociedad realiza actividades de microcrédito?. | D21: NO
A22: 13 | B22: Es intermediaria en gestión y venta de activos? | C22: Con ingresos brutos ≥ al 20% de los ingresos totales | D22: NO
A23: 14 | B23: Recibe arrendamientos? | D23: NO
A24: 15 | B24: Realiza actividades que generan rentas pasivas (dividendos, intereses, explotación de intangibles, etc, art. 884 E.T.)? | D24: NO
A25: 16 | B25: Realiza actividades de factoraje? | D25: NO
A26: 17 | B26: Presta servicios de asesoría financiera y/o estructuración de créditos? | D26: NO
A27: 18 | B27: Realiza la actividad de generacion,transmisión,distribución o comercialización de energía eléctrica?. | D27: NO
A28: 19 | B28: Realiza actividades de importación, exportación o comercialización de automóviles? | D28: NO
A29: 20 | B29: Realiza la actividad de importación de combustibles? | D29: NO
A30: 21 | B30: Se dedica a la producción o comercializacion de armas de fuego, municiones y pólvora,explosivos y detonantes? | D30: NO
A31: 22 | B31: Desarrolla simultáneamente una de las actividades ubicadas en los numerales 14 a 23 y otra diferente? | D31: NO
A32: 23 | B32: ¿Tiene rentas exentas o descuentos tributarios significativos? Recuerde que en el sistema SIMPLE se pierden estos beneficios | D32: NO
A33: 24 | B33: Esta sociedad es el resultado de una segregación, división o escisión de un negocio, que haya ocurrido en los 5 años anteriores al momento de la solicitud de inscripción a este régimen? | D33: NO
A34: 25 | B34: Realizó la matriz de decisión y determinó un ahorro de impuestos según sus ingresos, la rentabilidad, el efecto en el IVA para el Grupo 1 y el costo de los aportes a pensiones obligatorias del personal vinculado? | D34: SI
B37: ¿SE PUEDE ACOGER AL RÉGIMEN SIMPLE? | D37: =IF(AND(D10="SI",D11="SI",D12="SI",D13="SI",D14="SI",D15="SI",D16="NO",D17="NO",D18="NO",D19="NO",D20="NO",D21="NO",D22="NO",D23="NO",D24="NO",D25="NO",D26="NO",D27="NO",D28="NO",D29="NO",D30="NO",D31="NO",D32="NO",D34="SI",D33="NO"),"SÍ","NO") -> SÍ
B39: Si al responder algunas de la preguntas propuestas el semáforo se prende en rojo, significará que el contribuyente no podrá acogerse este sistema.
A41: * Si al evaluar todas las anteriores variables su cliente acierta todas las respuestas marcadas con color azul en el SI y en el NO,
A42: tal como están estructuradas, usted se puede acoger al régimen SIMPLE.
A44: * Con una sola respuesta en sentido contrario a las afirmaciones del SI o NO propuestas, su cliente no podrá pertenecer al régimen SIMPLE.

Sheet PLANTILLA
A3: CONVENIENCIA DEL SISTEMA SIMPLE DE TRIBUTACIÓN VS RENTA ORDINARIA
A5: Arts. 903 a 916 E.T. Actualizado con Ley 2277 de 2022
C7: Casillas diligenciables
C8: Casillas no diligenciables
A10: DATOS INFORMATIVOS
A12: TIPO DE CONTRIBUYENTE: | C12: Persona Natural
A14: Digite su Código CIIU actividad principal | C14: 141 | E14: =IF(C18="T1","",IF(C18="T2","",IF(C18="T3","",IF(C18="T4","","NO PUEDE ACOGERSE")))) -> 
A16: Digite su Código CIIU actividad secundaria | C16: 144
A18: Tarifa aplicable actividad principal | C18: =VLOOKUP(C14,'Código actividades'!A5:E457,5,FALSE) -> T2
A20: Tarifa aplicable actividad secundaria | C20: =IFERROR(VLOOKUP(C16,'Código actividades'!A5:E457,5,FALSE),C18) -> T2
A22: Es responsable de IVA antes de pertenecer al SIMPLE? | C22: SI
A24: Ingresos brutos anuales (fiscales) | C24: 600000000
A26: Ingresos No Constitutivos de Renta | C26: 18000000
A28: Ingresos Netos - Base SIMPLE | C28: =+C24-C26 -> 582000000
A30: Porcentaje rentabilidad sobre ingresos brutos | C30: 0.15
A32: Renta líquida | C32: =ROUND((C24*C30),-3) -> 90000000
A34: Valor UVT | C34: 42412
A36: Tarifa ICA (Por mil) | C36: 0
A38: ¿Avisos y tableros? | C38: NO
A40: Porcentaje de compras con IVA Solo para el grupo 1 | C40: 0
A42: Ingresos recaudados por medios electrónicos | C42: 0
A44: Aportes anuales a pensiones obligatorias a cargo del empleador | C44: 1670000
A48: DETERMINACIÓN DE IMPUESTOS POR EL RÉGIMEN ORDINARIO
A50: Impuesto de renta sociedades | C50: =ROUND((IF(C12="Sociedad",C32*35%,0)),-3) -> 0
A51: Impuesto de renta Persona Natural | C51: =IF(C12="Persona Natural",SUM('Tarifa PN'!E6:E12),0) -> 9932000
A52: IVA
A53: ICA | C53: =ROUND((+C24*C36/1000),-3) -> 0
A54: Avisos y tableros | C54: =+IF(C38="SI",(C53*15%),0) -> 0
A56: TOTAL IMPUESTOS SISTEMA ORDINARIO | C56: =ROUND((SUM(C50:C54)),-3) -> 9932000
A59: DETERMINACIÓN DE IMPUESTO RÉGIMEN SIMPLE
A62: Componente ICA territorial | C62: =+C53+C54 -> 0
A63: Componente SIMPLE Nacional | C63: =ROUND((+C64-C62),-3) -> 11640000
A64: TOTAL IMPUESTO SIMPLE | C64: =MAX(IF(C18="T4",'Tarifas SIMPLE'!E46,IF(C18="T3",'Tarifas SIMPLE'!E36,IF(C18="T2",'Tarifas SIMPLE'!E26,IF(C18="T1",'Tarifas SIMPLE'!E15,IF(C18="T5",'Tarifas SIMPLE'!E54,IF(C18="T6",'Tarifas SIMPLE'!E64,0)))))),(IF(C20="T4",'Tarifas SIMPLE'!E46,IF(C20="T3",'Tarifas SIMPLE'!E36,IF(C20="T2",'Tarifas SIMPLE'!E26,IF(C20="T1",'Tarifas SIMPLE'!E15,IF(C20="T5",'Tarifas SIMPLE'!E540,IF(C20="T6",'Tarifas SIMPLE'!E64,0)))))))) -> 11640000
A65: Descuento aportes a pensión | C65: =-MIN(C44,C63) -> -1670000
A66: Descuento por pagos electrónicos | C66: =ROUND((IF(C63+C65=0,0,-MIN(C63+C65,(IF(C42*0.5%<=C63,C42*0.5%,C63))))),-3) -> 0
A68: TOTAL IMPUESTO RÉGIMEN SIMPLE | C68: =SUM(C64:C67) -> 9970000
A71: DIFERENCIA ENTRE IMPUESTOS | C71: =+C56-C68 -> -38000
A72: IVA QUE SE GANA EN RENTABILIDAD | C72: =+(C24+(C24*C40*0.19)-((C24*(1-C30))+(C24*(1-C30)*C40*0.19)))-(C24-(C24*(1-C30))) -> 0 | D72: =+C72/C24 -> 0
A74: CONVENIENCIA DEL SISTEMA | C74: =IF(C71+C72>0,"CONVIENE","NO CONVIENE") -> NO CONVIENE

Sheet Código actividades (hidden)
A4: Código CIIU | B4: Tipo de Actividad | C4: Agrupación por Tarifa | D4: Descripción Actividad Económica | E4: TARIFA
A5: 4711 | B5: Comercial | C5: 201 | D5: Comercio al por menor en establecimientos no especializados con surtido compuesto principalmente por alimentos, bebidas o tabaco. | E5: T1
A6: 4721 | B6: Comercial | C6: 201 | D6: Comercio al por menor de productos agrícolas para el consumo en establecimientos especializados. | E6: T1
A7: 4722 | B7: Comercial | C7: 201 | D7: Comercio al por menor de leche, productos lácteos y huevos, en establecimientos especializados. | E7: T1
A8: 4723 | B8: Comercial | C8: 201 | D8: Comercio al por menor de carnes (incluye aves de corral), productos cárnicos, pescados y productos de mar, en establecimientos especializados. | E8: T1
A9: 4724 | B9: Comercial | C9: 203 | D9: Comercio al por menor de bebidas y productos del tabaco, en establecimientos especializados. | E9: T1
A10: 4729 | B10: Comercial | C10: 201 | D10: Comercio al por menor de otros productos alimenticios n.c.p., en establecimientos especializados. | E10: T1
A11: 9602 | B11: Servicios | C11: 304 | D11: Peluquería y otros tratamientos de belleza. | E11: T1
A12: 161 | B12: 161 | C12: Actividades de apoyo a la agricultura. | D12: Actividades de apoyo a la agricultura | E12: T2
A13: 162 | B13: Servicios | C13: 304 | D13: Actividades de apoyo a la ganadería. | E13: T2
A14: 164 | B14: Servicios | C14: 304 | D14: Tratamiento de semillas para propagación. | E14: T2
A15: 240 | B15: Servicios | C15: 304 | D15: Servicios de apoyo a la silvicultura. | E15: T2
A16: 510 | B16: Industrial | C16: 103 | D16: Extracción de hulla (carbón de piedra). | E16: T2
A17: 520 | B17: Industrial | C17: 103 | D17: Extracción de carbón lignito. | E17: T2
A18: 610 | B18: Industrial | C18: 103 | D18: Extracción de petróleo crudo. | E18: T2
A19: 620 | B19: Industrial | C19: 103 | D19: Extracción de gas natural. | E19: T2
A20: 710 | B20: Industrial | C20: 103 | D20: Extracción de minerales de hierro. | E20: T2
A21: 721 | B21: Industrial | C21: 103 | D21: Extracción de minerales de uranio y de torio. | E21: T2
A22: 722 | B22: Industrial | C22: 103 | D22: Extracción de oro y otros metales preciosos. | E22: T2
A23: 723 | B23: Industrial | C23: 103 | D23: Extracción de minerales de níquel. | E23: T2
A24: 729 | B24: Industrial | C24: 103 | D24: Extracción de otros minerales metalíferos no ferrosos n.c.p. | E24: T2
A25: 811 | B25: Industrial | C25: 103 | D25: Extracción de piedra, arena, arcillas comunes, yeso y anhidrita. | E25: T2
A26: 812 | B26: Industrial | C26: 103 | D26: Extracción de arcillas de uso industrial, caliza, caolín y bentonitas. | E26: T2
A27: 820 | B27: Industrial | C27: 103 | D27: Extracción de esmeraldas, piedras preciosas y semipreciosas. | E27: T2
A28: 891 | B28: Industrial | C28: 103 | D28: Extracción de minerales para la fabricación de abonos y productos químicos. | E28: T2
A29: 892 | B29: Industrial | C29: 103 | D29: Extracción de halita (sal). | E29: T2
A30: 899 | B30: Industrial | C30: 103 | D30: Extracción de otros minerales no metálicos n.c.p. | E30: T2
A31: 910 | B31: Servicios | C31: 304 | D31: Actividades de apoyo para la extracción de petróleo y de gas natural. | E31: T2
A32: 990 | B32: Servicios | C32: 304 | D32: Actividades de apoyo para otras actividades de explotación de minas y canteras. | E32: T2
A33: 1011 | B33: Industrial | C33: 101 | D33: Procesamiento y conservación de carne y productos cárnicos. | E33: T2
A34: 1012 | B34: Industrial | C34: 101 | D34: Procesamiento y conservación de pescados, crustáceos y moluscos. | E34: T2
A35: 1020 | B35: Industrial | C35: 101 | D35: Procesamiento y conservación de frutas, legumbres, hortalizas y tubérculos. | E35: T2
A36: 1030 | B36: Industrial | C36: 101 | D36: Elaboración de aceites y grasas de origen vegetal y animal. | E36: T2
A37: 1040 | B37: Industrial | C37: 101 | D37: Elaboración de productos lácteos. | E37: T2
A38: 1051 | B38: Industrial | C38: 101 | D38: Elaboración de productos de molinería. | E38: T2
A39: 1052 | B39: Industrial | C39: 101 | D39: Elaboración de almidones y productos derivados del almidón. | E39: T2
A40: 1061 | B40: Servicios | C40: 304 | D40: Trilla de café. | E40: T2
A41: 1062 | B41: Industrial | C41: 101 | D41: Descafeinado, tostión y molienda del café. | E41: T2
A42: 1063 | B42: Industrial | C42: 101 | D42: Otros derivados del café. | E42: T2
A43: 1071 | B43: Industrial | C43: 101 | D43: Elaboración y refinación de azúcar. | E43: T2
A44: 1072 | B44: Industrial | C44: 101 | D44: Elaboración de panela. | E44: T2
A45: 1081 | B45: Industrial | C45: 101 | D45: Elaboración de productos de panadería. | E45: T2
A46: 1082 | B46: Industrial | C46: 101 | D46: Elaboración de cacao, chocolate y productos de confitería. | E46: T2
A47: 1083 | B47: Industrial | C47: 101 | D47: Elaboración de macarrones, fideos, alcuzcuz y productos farináceos similares. | E47: T2
A48: 1084 | B48: Industrial | C48: 101 | D48: Elaboración de comidas y platos preparados. | E48: T2
A49: 1089 | B49: Industrial | C49: 101 | D49: Elaboración de otros productos alimenticios n.c.p. | E49: T2
A50: 1090 | B50: Industrial | C50: 101 | D50: Elaboración de alimentos preparados para animales. | E50: T2
A51: 1101 | B51: Industrial | C51: 103 | D51: Destilación, rectificación y mezcla de bebidas alcohólicas. | E51: T2
A52: 1102 | B52: Industrial | C52: 103 | D52: Elaboración de bebidas fermentadas no destiladas. | E52: T2
A53: 1103 | B53: Industrial | C53: 103 | D53: Producción de malta, elaboración de cervezas y otras bebidas malteadas. | E53: T2
A54: 1104 | B54: Industrial | C54: 103 | D54: Elaboración de bebidas no alcohólicas, producción de aguas minerales y de otras aguas embotelladas. | E54: T2
A55: 1200 | B55: Industrial | C55: 103 | D55: Elaboración de productos de tabaco | E55: T2
A56: 1311 | B56: Industrial | C56: 103 | D56: Preparación e hilatura de fibras textiles. | E56: T2
A57: 1312 | B57: Industrial | C57: 103 | D57: Tejeduría de productos textiles. | E57: T2
A58: 1313 | B58: Industrial | C58: 103 | D58: Acabado de productos textiles. | E58: T2
A59: 1391 | B59: Industrial | C59: 103 | D59: Fabricación de tejidos de punto y ganchillo. | E59: T2
A60: 1392 | B60: Industrial | C60: 103 | D60: Confección de artículos con materiales textiles, excepto prendas de vestir. | E60: T2
A61: 1393 | B61: Industrial | C61: 103 | D61: Fabricación de tapetes y alfombras para pisos. | E61: T2
A62: 1394 | B62: Industrial | C62: 103 | D62: Fabricación de cuerdas, cordeles, cables, bramantes y redes. | E62: T2
A63: 1399 | B63: Industrial | C63: 103 | D63: Fabricación de otros artículos textiles n.c.p. | E63: T2
A64: 1410 | B64: Industrial | C64: 101 | D64: Confección de prendas de vestir, excepto prendas de piel. | E64: T2
A65: 1420 | B65: Industrial | C65: 103 | D65: Fabricación de artículos de piel. | E65: T2
A66: 1430 | B66: Industrial | C66: 103 | D66: Fabricación de artículos de punto y ganchillo. | E66: T2
A67: 1511 | B67: Industrial | C67: 103 | D67: Curtido y recurtido de cueros; recurtido y teñido de pieles. | E67: T2
A68: 1512 | B68: Industrial | C68: 103 | D68: Fabricación de artículos de viaje, bolsos de mano y artículos similares elaborados en cuero, y fabricación de artículos de talabartería y guarnicionería. | E68: T2
A69: 1513 | B69: Industrial | C69: 103 | D69: Fabricación de artículos de viaje, bolsos de mano y artículos similares; artículos de talabartería y guarnicionería elaborados en otros materiales | E69: T2
A70: 1521 | B70: Industrial | C70: 101 | D70: Fabricación de calzado de cuero y piel, con cualquier tipo de suela. | E70: T2
A71: 1522 | B71: Industrial | C71: 101 | D71: Fabricación de otros tipos de calzado, excepto calzado de cuero y piel. | E71: T2
A72: 1523 | B72: Industrial | C72: 103 | D72: Fabricación de partes del calzado. | E72: T2
A73: 1610 | B73: Industrial | C73: 103 | D73: Aserrado, acepillado e impregnación de la madera. | E73: T2
A74: 1620 | B74: Industrial | C74: 103 | D74: Fabricación de hojas de madera para enchapado; fabricación de tableros contrachapados, tableros laminados, tableros de partículas y otros tableros y paneles. | E74: T2
A75: 1630 | B75: Industrial | C75: 103 | D75: Fabricación de partes y piezas de madera, de carpintería y ebanistería para la construcción. | E75: T2
A76: 1640 | B76: Industrial | C76: 103 | D76: Fabricación de recipientes de madera. | E76: T2
A77: 1690 | B77: Industrial | C77: 103 | D77: Fabricación de otros productos de madera; fabricación de artículos de corcho, cestería y espartería. | E77: T2
A78: 1701 | B78: Industrial | C78: 103 | D78: Fabricación de pulpas (pastas) celulósicas; papel y cartón. | E78: T2
A79: 1702 | B79: Industrial | C79: 103 | D79: Fabricación de papel y cartón ondulado (corrugado); fabricación de envases, empaques y de embalajes de papel y cartón. | E79: T2
A80: 1709 | B80: Industrial | C80: 103 | D80: Fabricación de otros artículos de papel y cartón. | E80: T2
A81: 1811 | B81: Servicios | C81: 304 | D81: Actividades de impresión. | E81: T2
A82: 1812 | B82: Servicios | C82: 304 | D82: Actividades de servicios relacionados con la impresión. | E82: T2
A83: 1820 | B83: Servicios | C83: 304 | D83: Producción de copias a partir de grabaciones originales. | E83: T2
A84: 1910 | B84: Industrial | C84: 103 | D84: Fabricación de productos de hornos de coque. | E84: T2
A85: 1921 | B85: Industrial | C85: 103 | D85: Fabricación de productos de la refinación del petróleo. | E85: T2
A86: 1922 | B86: Industrial | C86: 103 | D86: Actividad de mezcla de combustibles. | E86: T2
A87: 2011 | B87: Industrial | C87: 103 | D87: Fabricación de sustancias y productos químicos básicos. | E87: T2
A88: 2012 | B88: Industrial | C88: 103 | D88: Fabricación de abonos y compuestos inorgánicos nitrogenados. | E88: T2
A89: 2013 | B89: Industrial | C89: 103 | D89: Fabricación de plásticos en formas primarias. | E89: T2
A90: 2014 | B90: Industrial | C90: 103 | D90: Fabricación de caucho sintético en formas primarias. | E90: T2
A91: 2021 | B91: Industrial | C91: 103 | D91: Fabricación de plaguicidas y otros productos químicos de uso agropecuario. | E91: T2
A92: 2022 | B92: Industrial | C92: 103 | D92: Fabricación de pinturas, barnices y revestimientos similares, tintas para impresión y masillas. | E92: T2
A93: 2023 | B93: Industrial | C93: 103 | D93: Fabricación de jabones y detergentes, preparados para limpiar y pulir; perfumes y preparados de tocador. | E93: T2
A94: 2029 | B94: Industrial | C94: 103 | D94: Fabricación de otros productos químicos n.c.p | E94: T2
A95: 2030 | B95: Industrial | C95: 103 | D95: Fabricación de fibras sintéticas y artificiales | E95: T2
A96: 2100 | B96: Industrial | C96: 103 | D96: Fabricación de productos farmacéuticos, sustancias químicas medicinales y productos botánicos de uso farmacéutico | E96: T2
A97: 2211 | B97: Industrial | C97: 103 | D97: Fabricación de llantas y neumáticos de caucho | E97: T2
A98: 2212 | B98: Industrial | C98: 103 | D98: Reencauche de llantas usadas | E98: T2
A99: 2219 | B99: Industrial | C99: 103 | D99: Fabricación de formas básicas de caucho y otros productos de caucho n.c.p. | E99: T2
A100: 2221 | B100: Industrial | C100: 103 | D100: Fabricación de formas básicas de plástico. | E100: T2
A101: 2229 | B101: Industrial | C101: 103 | D101: Fabricación de artículos de plástico n.c.p. | E101: T2
A102: 2310 | B102: Industrial | C102: 103 | D102: Fabricación de vidrio y productos de vidrio. | E102: T2
A103: 2391 | B103: Industrial | C103: 103 | D103: Fabricación de productos refractarios. | E103: T2
A104: 2392 | B104: Industrial | C104: 103 | D104: Fabricación de materiales de arcilla para la construcción. | E104: T2
A105: 2393 | B105: Industrial | C105: 103 | D105: Fabricación de otros productos de cerámica y porcelana. | E105: T2
A106: 2394 | B106: Industrial | C106: 103 | D106: Fabricación de cemento, cal y yeso. | E106: T2
A107: 2395 | B107: Industrial | C107: 103 | D107: Fabricación de artículos de hormigón, cemento y yeso. | E107: T2
A108: 2396 | B108: Industrial | C108: 103 | D108: Corte, tallado y acabado de la piedra. | E108: T2
A109: 2399 | B109: Industrial | C109: 103 | D109: Fabricación de otros productos minerales no metálicos n.c.p. | E109: T2
A110: 2410 | B110: Industrial | C110: 102 | D110: Industrias básicas de hierro y de acero | E110: T2
A111: 2421 | B111: Industrial | C111: 103 | D111: Industrias básicas de metales preciosos. | E111: T2
A112: 2429 | B112: Industrial | C112: 103 | D112: Industrias básicas de otros metales no ferrosos. | E112: T2
A113: 2431 | B113: Industrial | C113: 102 | D113: Fundición de hierro y de acero. | E113: T2
A114: 2432 | B114: Industrial | C114: 103 | D114: Fundición de metales no ferrosos. | E114: T2
A115: 2511 | B115: Industrial | C115: 103 | D115: Fabricación de productos metálicos para uso estructural. | E115: T2
A116: 2512 | B116: Industrial | C116: 103 | D116: Fabricación de tanques, depósitos y recipientes de metal, excepto los utilizados para el envase o transporte de mercancías. | E116: T2
A117: 2513 | B117: Industrial | C117: 103 | D117: Fabricación de generadores de vapor, excepto calderas de agua caliente para calefacción central. | E117: T2
A118: 2591 | B118: Industrial | C118: 103 | D118: Forja, prensado, estampado y laminado de metal; pulvimetalurgia. | E118: T2
A119: 2592 | B119: Servicios | C119: 304 | D119: Tratamiento y revestimiento de metales; mecanizado. | E119: T2
A120: 2593 | B120: Industrial | C120: 103 | D120: Fabricación de artículos de cuchillería, herramientas de mano y artículos de ferretería. | E120: T2
A121: 2599 | B121: Industrial | C121: 103 | D121: Fabricación de otros productos elaborados de metal n.c.p. | E121: T2
A122: 2610 | B122: Industrial | C122: 103 | D122: Fabricación de componentes y tableros electrónicos. | E122: T2
A123: 2620 | B123: Industrial | C123: 103 | D123: Fabricación de computadoras y de equipo periférico. | E123: T2
A124: 2630 | B124: Industrial | C124: 103 | D124: Fabricación de equipos de comunicación | E124: T2
A125: 2640 | B125: Industrial | C125: 103 | D125: Fabricación de aparatos electrónicos de consumo. | E125: T2
A126: 2651 | B126: Industrial | C126: 103 | D126: Fabricación de equipo de medición, prueba, navegación y control. | E126: T2
A127: 2652 | B127: Industrial | C127: 103 | D127: Fabricación de relojes | E127: T2
A128: 2660 | B128: Industrial | C128: 103 | D128: Fabricación de equipo de irradiación y equipo electrónico de uso médico y terapéutico. | E128: T2
A129: 2670 | B129: Industrial | C129: 103 | D129: Fabricación de instrumentos ópticos y equipo fotográfico. | E129: T2
A130: 2680 | B130: Industrial | C130: 103 | D130: Fabricación de medios magnéticos y ópticos para almacenamiento de datos. | E130: T2
A131: 2711 | B131: Industrial | C131: 103 | D131: Fabricación de motores, generadores y transformadores eléctricos. | E131: T2
A132: 2712 | B132: Industrial | C132: 103 | D132: Fabricación de aparatos de distribución y control de la energía eléctrica. | E132: T2
A133: 2720 | B133: Industrial | C133: 103 | D133: Fabricación de pilas, baterías y acumuladores eléctricos | E133: T2
A134: 2731 | B134: Industrial | C134: 103 | D134: Fabricación de hilos y cables eléctricos y de fibra óptica. | E134: T2
A135: 2732 | B135: Industrial | C135: 103 | D135: Fabricación de dispositivos de cableado | E135: T2
A136: 2740 | B136: Industrial | C136: 103 | D136: Fabricación de equipos eléctricos de iluminación | E136: T2
A137: 2750 | B137: Industrial | C137: 103 | D137: Fabricación de aparatos de uso doméstico | E137: T2
A138: 2790 | B138: Industrial | C138: 103 | D138: Fabricación de otros tipos de equipo eléctrico n.c.p. | E138: T2
A139: 2811 | B139: Industrial | C139: 103 | D139: Fabricación de motores, turbinas, y partes para motores de combustión interna. | E139: T2
A140: 2812 | B140: Industrial | C140: 103 | D140: Fabricación de equipos de potencia hidráulica y neumática. | E140: T2
A141: 2813 | B141: Industrial | C141: 103 | D141: Fabricación de otras bombas, compresores, grifos y válvulas. | E141: T2
A142: 2814 | B142: Industrial | C142: 103 | D142: Fabricación de cojinetes, engranajes, trenes de engranajes y piezas de transmisión. | E142: T2
A143: 2815 | B143: Industrial | C143: 103 | D143: Fabricación de hornos, hogares y quemadores industriales. | E143: T2
A144: 2816 | B144: Industrial | C144: 103 | D144: Fabricación de equipo de elevación y manipulación. | E144: T2
A145: 2817 | B145: Industrial | C145: 103 | D145: Fabricación de maquinaria y equipo de oficina (excepto computadoras y equipo periférico). | E145: T2
A146: 2818 | B146: Industrial | C146: 103 | D146: Fabricación de herramientas manuales con motor. | E146: T2
A147: 2819 | B147: Industrial | C147: 103 | D147: Fabricación de otros tipos de maquinaria y equipo de uso general n.c.p. | E147: T2
A148: 2821 | B148: Industrial | C148: 103 | D148: Fabricación de maquinaria agropecuaria y forestal. | E148: T2
A149: 2822 | B149: Industrial | C149: 103 | D149: Fabricación de máquinas formadoras de metal y de máquinas herramienta. | E149: T2
A150: 2823 | B150: Industrial | C150: 103 | D150: Fabricación de maquinaria para la metalurgia. | E150: T2
A151: 2824 | B151: Industrial | C151: 103 | D151: Fabricación de maquinaria para explotación de minas y canteras y para obras de construcción. | E151: T2
A152: 2825 | B152: Industrial | C152: 103 | D152: Fabricación de maquinaria para la elaboración de alimentos, bebidas y tabaco. | E152: T2
A153: 2826 | B153: Industrial | C153: 103 | D153: Fabricación de maquinaria para la elaboración de productos textiles, prendas de vestir y cueros. | E153: T2
A154: 2829 | B154: Industrial | C154: 103 | D154: Fabricación de otros tipos de maquinaria y equipo de uso especial n.c.p. | E154: T2
A155: 2910 | B155: Industrial | C155: 102 | D155: Fabricación de vehículos automotores y sus motores. | E155: T2
A156: 2920 | B156: Industrial | C156: 102 | D156: Fabricación de carrocerías para vehículos automotores; fabricación de remolques y semirremolques | E156: T2
A157: 2930 | B157: Industrial | C157: 102 | D157: Fabricación de partes, piezas (autopartes) y accesorios (lujos) para vehículos automotores. | E157: T2
A158: 3011 | B158: Industrial | C158: 102 | D158: Construcción de barcos y de estructuras flotantes. | E158: T2
A159: 3012 | B159: Industrial | C159: 102 | D159: Construcción de embarcaciones de recreo y deporte. | E159: T2
A160: 3020 | B160: Industrial | C160: 102 | D160: Fabricación de locomotoras y de material rodante para ferrocarriles. | E160: T2
A161: 3030 | B161: Industrial | C161: 102 | D161: Fabricación de aeronaves, naves espaciales y de maquinaria conexa. | E161: T2
A162: 3040 | B162: Industrial | C162: 102 | D162: Fabricación de vehículos militares de combate | E162: T2
A163: 3091 | B163: Industrial | C163: 102 | D163: Fabricación de motocicletas. | E163: T2
A164: 3092 | B164: Industrial | C164: 102 | D164: Fabricación de bicicletas y de sillas de ruedas para personas con discapacidad. | E164: T2
A165: 3099 | B165: Industrial | C165: 102 | D165: Fabricación de otros tipos de equipo de transporte n.c.p. | E165: T2
A166: 3110 | B166: Industrial | C166: 103 | D166: Fabricación de muebles. | E166: T2
A167: 3120 | B167: Industrial | C167: 103 | D167: Fabricación de colchones y somieres. | E167: T2
A168: 3210 | B168: Industrial | C168: 103 | D168: Fabricación de joyas, bisutería y artículos conexos | E168: T2
A169: 3220 | B169: Industrial | C169: 103 | D169: Fabricación de instrumentos musicales | E169: T2
A170: 3230 | B170: Industrial | C170: 103 | D170: Fabricación de artículos y equipo para la práctica del deporte. | E170: T2
A171: 3240 | B171: Industrial | C171: 103 | D171: Fabricación de juegos, juguetes y rompecabezas. | E171: T2
A172: 3250 | B172: Industrial | C172: 103 | D172: Fabricación de instrumentos, aparatos y materiales médicos y odontológicos (incluido mobiliario). | E172: T2
A173: 3290 | B173: Industrial | C173: 103 | D173: Otras industrias manufactureras n.c.p. | E173: T2
A174: 3311 | B174: Servicios | C174: 304 | D174: Mantenimiento y reparación especializado de productos elaborados en metal. | E174: T2
A175: 3312 | B175: Servicios | C175: 304 | D175: Mantenimiento y reparación especializado de maquinaria y equipo. | E175: T2
A176: 3313 | B176: Servicios | C176: 304 | D176: Mantenimiento y reparación especializado de equipo electrónico y óptico. | E176: T2
A177: 3314 | B177: Servicios | C177: 304 | D177: Mantenimiento y reparación especializado de equipo eléctrico. | E177: T2
A178: 3315 | B178: Servicios | C178: 304 | D178: Mantenimiento y reparación especializado de equipo de transporte, excepto los vehículos automotores, motocicletas y bicicletas. | E178: T2
A179: 3319 | B179: Servicios | C179: 304 | D179: Mantenimiento y reparación de otros tipos de equipos y sus componentes n.c.p. | E179: T2
A180: 3320 | B180: Servicios | C180: 304 | D180: Instalación especializada de maquinaria y equipo industrial. | E180: T2
A181: 3520 | B181: Servicios | C181: 304 | D181: Producción de gas; distribución de combustibles gaseosos por tuberías | E181: T2
A182: 3530 | B182: Servicios | C182: 304 | D182: Suministro de vapor y aire acondicionado. | E182: T2
A183: 3600 | B183: Servicios | C183: 304 | D183: Captación, tratamiento y distribución de agua. | E183: T2
A184: 3700 | B184: Servicios | C184: 304 | D184: Evacuación y tratamiento de aguas residuales. | E184: T2
A185: 3811 | B185: Servicios | C185: 304 | D185: Recolección de desechos no peligrosos. | E185: T6
A186: 3812 | B186: Servicios | C186: 304 | D186: Recolección de desechos peligrosos. | E186: T2
A187: 3821 | B187: Industrial | C187: 104 | D187: Tratamiento y disposición de desechos no peligrosos. | E187: T2
A188: 3822 | B188: Industrial | C188: 104 | D188: Tratamiento y disposición de desechos peligrosos. | E188: T2
A189: 3830 | B189: Industrial | C189: 104 | D189: Recuperación de materiales. | E189: T6
A190: 3900 | B190: Servicios | C190: 304 | D190: Actividades de saneamiento ambiental y otros servicios de gestión de desechos. | E190: T2
A191: 4111 | B191: Servicios | C191: 302 | D191: Construcción de edificios residenciales. | E191: T2
A192: 4112 | B192: Servicios | C192: 302 | D192: Construcción de edificios no residenciales | E192: T2
A193: 4210 | B193: Servicios | C193: 302 | D193: Construcción de carreteras y vías de ferrocarril. | E193: T2
A194: 4220 | B194: Servicios | C194: 302 | D194: Construcción de proyectos de servicio público. | E194: T2
A195: 4290 | B195: Servicios | C195: 302 | D195: Construcción de otras obras de ingeniería civil. | E195: T2
A196: 4311 | B196: Servicios | C196: 302 | D196: Demolición. | E196: T2
A197: 4312 | B197: Servicios | C197: 302 | D197: Preparación del terreno. | E197: T2
A198: 4321 | B198: Servicios | C198: 302 | D198: Instalaciones eléctricas. | E198: T2
A199: 4322 | B199: Servicios | C199: 302 | D199: Instalaciones de fontanería, calefacción y aire acondicionado. | E199: T2
A200: 4329 | B200: Servicios | C200: 302 | D200: Otras instalaciones especializadas. | E200: T2
A201: 4330 | B201: Servicios | C201: 302 | D201: Terminación y acabado de edificios y obras de ingeniería civil. | E201: T2
A202: 4390 | B202: Servicios | C202: 302 | D202: Otras actividades especializadas para la construcción de edificios y obras de ingeniería civil. | E202: T2
A203: 4511 | B203: Comercial | C203: 202 | D203: Comercio de vehículos automotores nuevos. | E203: T2
... 254 more rows

Sheet Tarifa PN (hidden)
A1: TARIFA DE RENTA PERSONAS NATURALES. ART. 241 E.T.
A4: Rangos en UVT | C4: Tarifa Marginal | D4: Instrucción para calcular la retención ("impuesto") en $ | E4: Calculo en $ del valor de la retención
A5: desde | B5: Hasta
A6: 0 | B6: 1090 | C6: 0 | D6: Ninguna | E6: 0
A7: >1090 | B7: 1700 | C7: 0.19 | D7: (Ingreso laboral gravado expresado en UVT menos 1090 UVT)*19% | E7: =IF($E$16>1090,(IF($E$16<=1700,ROUND(((($E$16-1090)*19%)*PLANTILLA!$C$34),-3),0)),0) -> 0
A8: >1700 | B8: 4100 | C8: 0.28 | D8: (Ingreso laboral gravado expresado en UVT menos 1700 UVT)*28% más 116 UVT | E8: =IF($E$16>1700,(IF($E$16<=4100,ROUND((((($E$16-1700)*28%)+116)*PLANTILLA!$C$34),-3),0)),0) -> 9932000
A9: >4100 | B9: 8670 | C9: 0.33 | D9: (Ingreso laboral gravado expresado en UVT menos 4100 UVT)*33% más 788 UVT | E9: =IF($E$16>4100,(IF($E$16<=8670,ROUND((((($E$16-4100)*33%)+788)*PLANTILLA!$C$34),-3),0)),0) -> 0
A10: >8670 | B10: 18970 | C10: 0.35 | D10: (Ingreso laboral gravado expresado en UVT menos 8670 UVT)*35% más 2296 UVT | E10: =IF($E$16>8670,(IF($E$16<=18970,ROUND((((($E$16-8670)*35%)+2296)*PLANTILLA!$C$34),-3),0)),0) -> 0
A11: >18970 | B11: 31000 | C11: 0.37 | D11: (Ingreso laboral gravado expresado en UVT menos 18970 UVT)*37% más 5901 UVT | E11: =IF($E$16>18970,(IF($E$16<=31000,ROUND((((($E$16-18970)*37%)+5901)*PLANTILLA!$C$34),-3),0)),0) -> 0
A12: >31000 | B12: En adelante | C12: 0.39 | D12: (Ingreso laboral gravado expresado en UVT menos 31000 UVT)*39% más 10352 UVT | E12: =IF($E$16>31000,ROUND(((($E$16-31000)*39%)+10352)*(PLANTILLA!$C$34),-3),0) -> 0
A15: RENTA LÍQUIDA EN PESOS | E15: =+IF(PLANTILLA!C12="Persona Natural",PLANTILLA!C32,0) -> 90000000
A16: RENTA LÍQUIDA EN UVT | E16: =+E15/PLANTILLA!C34 -> 2122.040932

Sheet Tarifas SIMPLE (hidden)
B1: TARIFAS RÉGIMEN SIMPLE
B3: INGRESOS EN PESOS | F3: =+PLANTILLA!C28 -> 582000000
B5: INRESOS EN UVT | F5: =+F3/PLANTILLA!$C$34 -> 13722.53136
A7: 1. Tiendas pequeñas, mini-mercados, micro-mercados y peluquería:
B9: INGRESOS BRUTOS ANUALES | D9: TARIFA SIMPLE
B10: IGUAL O SUPERIOR (UVT) | C10: INFERIOR (UVT) | D10: CONSOLIDADA | E10: IMPUESTO
B11: 0 | C11: 6000 | D11: 0.012 | E11: =IF($F$5<6000,ROUND(($F$5*D11*PLANTILLA!$C$34),-3),0) -> 0
B12: 6000 | C12: 15000 | D12: 0.028 | E12: =IF(($F$5)>=6000,(IF($F$5<15000,ROUND((($F$5*D12)*PLANTILLA!$C$34),-3),0)),0) -> 16296000
B13: 15000 | C13: 30000 | D13: 0.044 | E13: =IF(($F$5)>=15000,(IF($F$5<30000,ROUND((($F$5*D13)*PLANTILLA!$C$34),-3),0)),0) -> 0
B14: 30000 | C14: 100000 | D14: 0.056 | E14: =IF(($F$5)>=30000,(IF($F$5<100000,ROUND((($F$5*D14)*PLANTILLA!$C$34),-3),0)),0) -> 0
E15: =SUM(E11:E14) -> 16296000
A18: 2. Actividades comerciales al por mayor y detal; servicios técnicos y mecánicos en los que predomina el factor material sobre el intelectual, los electricistas, los albañiles, los servicios de construcción y los talleres mecánicos de vehículos y electrodomésticos; actividades industriales, incluidas las de agro-industria, miniindustria y micro-industria; actividades de telecomunicaciones; y las demás actividades no incluidas en los siguientes numerales:
B20: INGRESOS BRUTOS ANUALES | D20: TARIFA SIMPLE
B21: IGUAL O SUPERIOR (UVT) | C21: INFERIOR (UVT) | D21: CONSOLIDADA | E21: IMPUESTO
B22: 0 | C22: 6000 | D22: 0.016 | E22: =IF($F$5<6000,ROUND(($F$5*D22*PLANTILLA!$C$34),-3),0) -> 0
B23: 6000 | C23: 15000 | D23: 0.02 | E23: =IF(($F$5)>=6000,(IF($F$5<15000,ROUND((($F$5*D23)*PLANTILLA!$C$34),-3),0)),0) -> 11640000
B24: 15000 | C24: 30000 | D24: 0.035 | E24: =IF(($F$5)>=15000,(IF($F$5<30000,ROUND((($F$5*D24)*PLANTILLA!$C$34),-3),0)),0) -> 0
B25: 30000 | C25: 100000 | D25: 0.045 | E25: =IF(($F$5)>=30000,(IF($F$5<100000,ROUND((($F$5*D25)*PLANTILLA!$C$34),-3),0)),0) -> 0
E26: =SUM(E22:E25) -> 11640000
A28: 3. Actividades de expendio de comidas y bebidas, y actividades de transporte:
B30: INGRESOS BRUTOS ANUALES | D30: TARIFA SIMPLE
B31: IGUAL O SUPERIOR (UVT) | C31: INFERIOR (UVT) | D31: CONSOLIDADA | E31: IMPUESTO
B32: 0 | C32: 6000 | D32: 0.031 | E32: =IF($F$5<6000,ROUND(($F$5*D32*PLANTILLA!$C$34),-3),0) -> 0 | H32: =38004*C32 -> 228024000
B33: 6000 | C33: 15000 | D33: 0.034 | E33: =IF(($F$5)>=6000,(IF($F$5<15000,ROUND((($F$5*D33)*PLANTILLA!$C$34),-3),0)),0) -> 19788000 | H33: =+H32*D32 -> 7068744
B34: 15000 | C34: 30000 | D34: 0.04 | E34: =IF(($F$5)>=15000,(IF($F$5<30000,ROUND((($F$5*D34)*PLANTILLA!$C$34),-3),0)),0) -> 0
B35: 30000 | C35: 100000 | D35: 0.045 | E35: =IF(($F$5)>=30000,(IF($F$5<100000,ROUND((($F$5*D35)*PLANTILLA!$C$34),-3),0)),0) -> 0
E36: =SUM(E32:E35) -> 19788000
A38: 4 Educación y actividades de atención de la salud humana y de asistencia social:
B40: INGRESOS BRUTOS ANUALES | D40: TARIFA SIMPLE
B41: IGUAL O SUPERIOR (UVT) | C41: INFERIOR (UVT) | D41: CONSOLIDADA | E41: IMPUESTO
B42: 0 | C42: 6000 | D42: 0.037 | E42: =IF($F$5<6000,ROUND(($F$5*D42*PLANTILLA!$C$34),-3),0) -> 0
B43: 6000 | C43: 15000 | D43: 0.05 | E43: =IF(($F$5)>=6000,(IF($F$5<15000,ROUND((($F$5*D43)*PLANTILLA!$C$34),-3),0)),0) -> 29100000
B44: 15000 | C44: 30000 | D44: 0.054 | E44: =IF(($F$5)>=15000,(IF($F$5<30000,ROUND((($F$5*D44)*PLANTILLA!$C$34),-3),0)),0) -> 0
B45: 30000 | C45: 100000 | D45: 0.059 | E45: =IF(($F$5)>=30000,(IF($F$5<100000,ROUND((($F$5*D45)*PLANTILLA!$C$34),-3),0)),0) -> 0
E46: =SUM(E42:E45) -> 29100000
A48: 5. Servicios profesionales, de consultoría y científicos en los que predomine el factor intelectual sobre el material, incluidos los servicios de profesiones liberales:
B50: INGRESOS BRUTOS ANUALES | D50: TARIFA SIMPLE
B51: IGUAL O SUPERIOR (UVT) | C51: INFERIOR (UVT) | D51: CONSOLIDADA | E51: IMPUESTO
B52: 0 | C52: 6000 | D52: 0.073 | E52: =IF($F$5<6000,ROUND(($F$5*D52*PLANTILLA!$C$34),-3),0) -> 0
B53: 6000 | C53: 12000 | D53: 0.083 | E53: =IF(($F$5)>=6000,(IF($F$5<12000,ROUND((($F$5*D53)*PLANTILLA!$C$34),-3),0)),0) -> 0
E54: =SUM(E52:E53) -> 0
A56: 6. Actividades clasificadas en codigos CIIU 4665,3830, 3811
B58: INGRESOS BRUTOS ANUALES | D58: TARIFA SIMPLE
B59: IGUAL O SUPERIOR (UVT) | C59: INFERIOR (UVT) | D59: CONSOLIDADA | E59: IMPUESTO
B60: 0 | C60: 6000 | D60: 0.0162 | E60: =IF($F$5<6000,ROUND(($F$5*D60*PLANTILLA!$C$34),-3),0) -> 0
B61: 6000 | C61: 15000 | D61: 0.0162 | E61: =IF(($F$5)>=6000,(IF($F$5<15000,ROUND((($F$5*D61)*PLANTILLA!$C$34),-3),0)),0) -> 9428000
B62: 15000 | C62: 30000 | D62: 0.0162 | E62: =IF(($F$5)>=15000,(IF($F$5<30000,ROUND((($F$5*D62)*PLANTILLA!$C$34),-3),0)),0) -> 0
B63: 30000 | C63: 80000 | D63: 0.0162 | E63: =IF(($F$5)>=30000,(IF($F$5<100000,ROUND((($F$5*D63)*PLANTILLA!$C$34),-3),0)),0) -> 0
E64: =SUM(E60:E63) -> 9428000
